fUSD/lending_fUSD_20250826
["ID","MTS","AMOUNT","RATE_DAILY","PERIOD"]
[381425388,1756192240785,-512.84,0.00014925,2]
[381425389,1756192240795,-512.84,0.0001493,2]
[381425390,1756192240806,-512.84,0.00014936,2]
[381425391,1756192240816,-512.84,0.00014941,2]
[381425392,1756192240827,-512.84,0.00014947,2]
[381425393,1756192240838,-512.84,0.00014952,2]
[381425394,1756192240848,-512.84,0.00014958,2]
[381425395,1756192240860,-512.84,0.00014963,2]
[381425396,1756192240870,-22634.51830987,0.00014968,2]
[381425397,1756192240880,-512.84,0.00014969,2]
[381425398,1756192240893,-500.0,0.000151,2]
[381425399,1756192240902,-160.0,0.00015233,7]
[381425400,1756192240912,-295.38937639,0.00015469,2]
[381425401,1756192240923,-433.0,0.00015624,2]
[381425402,1756192240933,-1673.71777732,0.00016036,2]
[381425403,1756192240943,-9999.99,0.00016116,2]
[381425404,1756192240953,-151.0,0.00016274,2]
[381425405,1756192240963,-151.0,0.00016284,2]
[381425406,1756192240973,-151.0,0.00016312,2]
[381425407,1756192240983,-151.0,0.00016356,2]
[381425408,1756192240994,-207.4,0.00016416,2]
[381425409,1756192241009,-4155.0,0.00016436,2]
[381425410,1756192241018,-6146.0,0.00016436,2]
[381425411,1756192241027,-718.0,0.00016436,2]
[381425412,1756192241037,-21104.0,0.00016436,2]
[381425413,1756192241046,-500.0,0.00016438,2]
[381425414,1756192241055,-600.0,0.00016438,2]
[381425415,1756192241065,-600.0,0.00016438,2]
[381425416,1756192241074,-600.0,0.00016438,2]
[381425417,1756192241086,-600.0,0.00016438,2]
[381425418,1756192241096,-600.0,0.00016438,2]
[381425419,1756192241105,-600.0,0.00016438,2]
[381425420,1756192241115,-600.0,0.00016438,2]
[381425421,1756192241126,-600.0,0.00016438,2]
[381425422,1756192241136,-613.05807763,0.00016438,2]
[381425423,1756192241146,-1000.0,0.00016499,2]
[381425424,1756192241157,-150.095,0.00016537,2]
[381425425,1756192241168,-150.105,0.00016537,2]
[381425426,1756192241178,-150.0,0.00016537,2]
[381425427,1756192241189,-500.0,0.000166,2]
[381425428,1756192241199,-500.0,0.00016761,2]
[381425429,1756192241209,-169.30391011,0.0001679,2]
[381425430,1756192241219,-150.0,0.0001689,2]
[381425431,1756192241230,-150.0,0.0001689,2]
[381425432,1756192241240,-150.0,0.0001689,2]
[381425433,1756192241250,-150.178,0.0001689,2]
[381425434,1756192241262,-3374.0,0.0001689,2]
[381425435,1756192241271,-1256.0,0.0001689,2]
[381425436,1756192241281,-926.0,0.0001689,2]
[381425437,1756192241291,-2031.0,0.0001689,2]
[381425438,1756192241300,-1298.0,0.0001689,2]
[381425439,1756192241310,-571.777,0.0001689,2]
[381425440,1756192241319,-599.0,0.0001689,2]
[381425441,1756192241329,-1658.0,0.0001689,2]
[381425442,1756192241339,-895.0,0.0001689,2]
[381425443,1756192241348,-1173.0,0.0001689,2]
[381425444,1756192241358,-479.0,0.00016916,2]
[381425445,1756192241367,-500.0,0.00016922,2]
[381425446,1756192241377,-168.0,0.00016931,2]
[381425447,1756192241386,-300.0,0.00016943,2]
[381425448,1756192241399,-221.0,0.00016954,2]
[381425449,1756192241408,-168.0,0.00017044,2]
[381425450,1756192241417,-500.0,0.00017083,2]
[381425451,1756192241427,-168.0,0.00017205,2]
[381425452,1756192241437,-168.0,0.00017213,2]
[381425453,1756192241446,-500.0,0.00017244,2]
[381425454,1756192241456,-1673.71777732,0.00017269,2]
[381425455,1756192241466,-168.0,0.00017281,2]
[381425456,1756192241475,-168.0,0.00017311,2]
[381425457,1756192241495,-844.63891918,0.00017358,2]
[381425458,1756192241515,-458.7662338,0.00017358,2]
[381425459,1756192241526,-160.0,0.00017358,2]
[381425460,1756192241535,-160.0,0.00017358,2]
[381425461,1756192241544,-212.18043798,0.00017358,2]
[381425462,1756192241554,-500.0,0.00017405,2]
[381425463,1756192241563,-221.0,0.00017411,2]
[381425464,1756192241573,-168.0,0.00017427,2]
[381425465,1756192241582,-2000.0,0.000175,2]
[381425466,1756192241591,-500.0,0.00017566,2]
[381425467,1756192241601,-621.26400369,0.00017592,2]
[381425468,1756192241610,-695.39793187,0.00017592,2]
[381425469,1756192241620,-322.6107,0.00017592,2]
[381425470,1756192241629,-433.23864431,0.00017592,2]
[381425471,1756192241638,-267.46074303,0.00017592,2]
[381425472,1756192241647,-168.0,0.0001763,2]
[381425473,1756192241656,-168.0,0.00017631,2]
[381425474,1756192241666,-168.0,0.00017642,2]
[381425475,1756192241675,-500.0,0.00017677,2]
[381425476,1756192241684,-168.0,0.00017718,2]
[381425477,1756192241693,-500.0,0.00017728,2]
[381425478,1756192241702,-168.0,0.00017742,2]
[381425479,1756192241712,-500.0,0.00017889,2]
[381425480,1756192241721,-2000.0,0.00017999,2]
[381425481,1756192241733,-2000.0,0.00017999,2]
[381425482,1756192241743,-2000.0,0.00017999,2]
[381425483,1756192241753,-2000.0,0.00017999,2]
[381425484,1756192241764,-2000.0,0.00018,2]
[381425485,1756192241773,-168.0,0.00018023,2]
[381425486,1756192241783,-500.0,0.0001805,2]
[381425487,1756192241793,-168.0,0.00018056,2]
[381425488,1756192241802,-168.0,0.00018066,2]
[381425489,1756192241811,-168.0,0.0001812,2]
[381425490,1756192241822,-1000.0,0.00018149,2]
[381425492,1756192241831,-2325.8089141,0.00018154,2]
[381425493,1756192241840,-12483.37443028,0.00018157,2]
[381425494,1756192241850,-9900.32778389,0.00018157,2]
[381425495,1756192241860,-1603.50174015,0.00018158,2]
[381425496,1756192241869,-1069.00116009,0.00018161,2]
[381425497,1756192241880,-3452.80304532,0.00018161,2]
[381425498,1756192241890,-534.50058004,0.00018161,2]
[381425500,1756192241900,-942.97821363,0.00018161,2]
[381425501,1756192241910,-1603.50174015,0.00018162,2]
[381425502,1756192241919,-172.48767384,0.00018162,2]
[381425503,1756192241929,-534.50058004,0.00018165,2]
[381425504,1756192241939,-534.50058004,0.00018165,2]
[381425505,1756192241948,-1150.93434842,0.00018165,2]
[381425506,1756192241957,-3101.07855214,0.00018166,2]
[381425507,1756192241967,-12483.37443028,0.00018166,2]
[381425508,1756192241976,-168.0,0.00018166,2]
[381425509,1756192241985,-1150.93434842,0.00018167,2]
[381425510,1756192241994,-1150.93434842,0.00018167,2]
[381425511,1756192242003,-1885.95642728,0.00018169,2]
[381425512,1756192242012,-2325.8089141,0.00018169,2]
[381425513,1756192242021,-172.48767384,0.00018169,2]
[381425514,1756192242031,-3101.07855214,0.0001817,2]
[381425515,1756192242040,-172.48767384,0.0001817,2]
[381425516,1756192242049,-139901.06802834,0.00018171,2]
[381425517,1756192242059,-942.97821363,0.00018171,2]
[381425518,1756192242069,-2325.8089141,0.00018171,2]
[381425519,1756192242079,-534.50058003,0.00018171,2]
[381425520,1756192242096,-981.20266809,0.00018172,2]
[381425521,1756192242106,-3452.80304532,0.00018173,2]
[381425522,1756192242116,-2325.8089141,0.00018174,2]
[381425523,1756192242126,-942.97821363,0.00018175,2]
[381425524,1756192242139,-942.97821363,0.00018177,2]
[381425525,1756192242151,-1150.93434842,0.00018179,2]
[381425526,1756192242161,-1150.93434842,0.0001818,2]
[381425527,1756192242170,-981.20266809,0.00018181,2]
[381425528,1756192242181,-172.48767384,0.00018185,2]
[381425529,1756192242190,-139901.06802834,0.00018185,2]
[381425530,1756192242200,-1150.93434842,0.00018186,2]
[381425531,1756192242209,-1150.93434842,0.00018188,2]
[381425532,1756192242219,-9900.32778389,0.00018188,2]
[381425533,1756192242229,-534.50058003,0.00018189,2]
[381425534,1756192242238,-9900.32778389,0.00018189,2]
[381425535,1756192242248,-12557.78504253,0.00018189,2]
[381425536,1756192242257,-1150.93434842,0.00018193,2]
[381425537,1756192242267,-3101.07855214,0.00018193,2]
[381425538,1756192242277,-139901.06802834,0.00018193,2]
[381425539,1756192242287,-1150.93434842,0.00018193,2]
[381425540,1756192242297,-107026.01182036,0.00018196,2]
[381425542,1756192244343,-150.0,0.00014199,3]
[381425543,1756192244355,-337.51406277,0.00014967,2]
[381425544,1756192244366,-163.30948079,0.00014967,2]
[381425545,1756192244377,-151.0,0.00016325,2]
[381425546,1756192244389,-32875.05620798,0.00018196,2]
[381425547,1756192244403,-4122.85580929,0.00018197,2]
[381425548,1756192244436,-3347.49841883,0.00018197,2]
[381425578,1756192247473,-3954.24971516,0.00018197,2]
[381425579,1756192247486,-1058.770487,0.00018197,2]
[381425580,1756192247495,-9900.32778389,0.00018197,2]
[381425581,1756192247504,-1627.54219472,0.00018198,2]
[381425582,1756192247538,-1825.2608506,0.00018198,2]
[381425583,1756192247549,-1150.93434842,0.00018201,2]
[381425584,1756192247558,-534.50058004,0.00018202,2]
[381425585,1756192247568,-665.92033449,0.00018202,2]
[381425586,1756192247598,-1174.9999995,0.00018202,2]
[381425587,1756192247638,-420.11592029,0.00018202,2]
[381425615,1756192521507,152.0,0.00028767,120]
[381425617,1756192522247,152.0,0.00028767,120]
[381425618,1756192523700,152.0,0.00028767,120]
[381425622,1756192528747,152.0,0.00028767,120]
[381425623,1756192529188,152.0,0.00028767,120]
[381425656,1756192803501,10000.0,0.00028767,120]
[381425666,1756193006295,-250.0,0.00015,2]
[381425667,1756193006334,-500.0,0.00016438,2]
[381425668,1756193006365,-634.0,0.000165,2]
[381425681,1756193293726,10000.0,0.00028767,120]
[381425701,1756193432444,-274.39538015,0.000119,2]
[381425702,1756193432455,-913.4221166,0.000119,2]
[381425703,1756193432466,-167.28280839,0.000119,2]
[381425704,1756193432477,-1231.77055683,0.000119,2]
[381425705,1756193432488,-844.35788172,0.000119,2]
[381425710,1756193432687,-1427.87230759,0.000119,2]
[381425712,1756193432701,-515.72261684,0.000119,2]
[381425757,1756193438499,-16272.167539,0.000119,2]
[381425758,1756193438511,-362.47411317,0.000119,2]
[381425759,1756193438522,-2460.66295373,0.000119,2]
[381425760,1756193438532,-268.88146461,0.000119,2]
[381425761,1756193438544,-190.5423975,0.000119,2]
[381425762,1756193438559,-502.90418228,0.00011973,2]
[381425763,1756193438569,-500.0,0.00011973,2]
[381425764,1756193438579,-502.86388625,0.00011973,2]
[381425765,1756193438588,-500.0,0.00011973,2]
[381425766,1756193438598,-1200.0,0.00011998,2]
[381425767,1756193438608,-1000.0,0.00011999,2]
[381425768,1756193438617,-750.0,0.00011999,2]
[381425769,1756193438626,-150.0,0.00011999,2]
[381425770,1756193438636,-539.20163121,0.00011999,2]
[381425771,1756193438645,-168.08021093,0.00011999,2]
[381425772,1756193438654,-259.45741622,0.00011999,2]
[381425773,1756193438663,-9670395.20627189,0.00012,2]
[381425774,1756193438672,-1513884.03080178,0.00012,2]
[381425775,1756193438682,-250.0,0.00012,2]
[381425776,1756193438691,-250.0,0.00012,2]
[381425777,1756193438700,-253.2,0.00012,2]
[381425778,1756193438709,-1000.0,0.00012521,2]
[381425779,1756193438718,-268.88146458,0.00012567,2]
[381425780,1756193438727,-435.27074848,0.00012872,2]
[381425781,1756193438736,-1500.0,0.00013068,2]
[381425782,1756193438745,-255.0,0.00013079,2]
[381425783,1756193438754,-302.91,0.00013172,2]
[381425788,1756193439100,-9999.99,0.00013172,2]
[381425789,1756193439110,-38500.85,0.00013172,2]
[381425790,1756193439119,-1680.0,0.00013198,2]
[381425791,1756193439129,-152.0,0.00013199,2]
[381425792,1756193439139,-150.99,0.00013199,2]
[381425793,1756193439148,-9999.99,0.00013199,2]
[381425794,1756193439157,-299.99,0.00013199,2]
[381425795,1756193439167,-150.99,0.00013199,2]
[381425796,1756193439176,-999.99,0.00013199,2]
[381425797,1756193439186,-24386.02507433,0.00013261,2]
[381425798,1756193439195,-17401.41989903,0.00013599,2]
[381425799,1756193439204,-1055.08820147,0.00013616,2]
[381425800,1756193439215,-427.37,0.00013699,2]
[381425801,1756193439223,-210.37,0.000137,2]
[381425803,1756193439232,-210.37,0.000137,2]
[381425804,1756193439241,-217.0,0.0001376,2]
[381425806,1756193439251,-500.0,0.00013791,2]
[381425808,1756193439260,-2463.01316126,0.000139,2]
[381425810,1756193439270,-200.0,0.00013958,2]
[381425812,1756193439279,-1500.0,0.00014049,2]
[381425814,1756193439288,-433.0,0.00014255,2]
[381425816,1756193439298,-825.0,0.00014262,2]
[381425818,1756193439307,-295.51874883,0.00014325,2]
[381425820,1756193439317,-512.84,0.00014398,2]
[381425822,1756193439326,-512.84,0.00014403,2]
[381425823,1756193439336,-512.84,0.00014409,2]
[381425825,1756193439347,-512.84,0.00014414,2]
[381425827,1756193439355,-512.84,0.00014419,2]
[381425829,1756193439365,-512.84,0.00014425,2]
[381425832,1756193439374,-512.84,0.0001443,2]
[381425834,1756193439387,-512.84,0.00014435,2]
[381425836,1756193439397,-512.84,0.00014441,2]
[381425838,1756193439407,-512.84,0.00014446,2]
[381425840,1756193439416,-512.84,0.00014451,2]
[381425842,1756193439426,-512.84,0.00014457,2]
[381425844,1756193439436,-512.84,0.00014462,2]
[381425846,1756193439446,-512.84,0.00014467,2]
[381425848,1756193439455,-512.84,0.00014473,2]
[381425849,1756193439464,-512.84,0.00014478,2]
[381425851,1756193439474,-512.84,0.00014483,2]
[381425853,1756193439483,-512.84,0.00014488,2]
[381425855,1756193439493,-512.84,0.00014494,2]
[381425857,1756193439502,-512.84,0.00014499,2]
[381425859,1756193439512,-2351.0,0.00014517,2]
[381425860,1756193439522,-1000.0,0.00014625,2]
[381425862,1756193439532,-169.18042404,0.00014655,2]
[381425864,1756193439541,-3591.4720702,0.00015,2]
[381425866,1756193439555,-435.27074847,0.00015182,2]
[381425868,1756193439565,-1517.64,0.000153,2]
[381425870,1756193439574,-16374.64274362,0.000154,2]
[381425872,1756193439583,-498.00312108,0.000154,2]
[381425874,1756193439594,-255.35,0.00015439,2]
[381425876,1756193439604,-169.18042404,0.00015497,2]
[381425879,1756193439617,-654.0,0.00015533,2]
[381425881,1756193439628,-378.0,0.00015533,2]
[381425883,1756193439639,-736.0,0.00015539,2]
[381425885,1756193439648,-250.0,0.00015724,2]
[381425887,1756193439658,-1000.0,0.00015878,2]
[381425889,1756193439668,-2547.0,0.0001589,2]
[381425891,1756193439677,-2284.0,0.00015969,2]
[381425893,1756193439688,-583.33161663,0.00016,2]
[381425895,1756193439698,-169.18042404,0.00016338,2]
[381425897,1756193439707,-200.0,0.0001634,2]
[381425899,1756193439717,-1125.52305538,0.0001637,2]
[381425901,1756193439727,-500.0,0.00016373,2]
[381425903,1756193439736,-15460.55361583,0.00016383,2]
[381425905,1756193439746,-150.0,0.00016384,2]
[381425907,1756193439756,-825.79892432,0.00016384,2]
[381425909,1756193439765,-1052.48882511,0.00016385,2]
[381425911,1756193439775,-1279.1787259,0.00016386,2]
[381425912,1756193439787,-1505.8686267,0.00016386,2]
[381425914,1756193439797,-1732.55852749,0.00016387,2]
[381425916,1756193439807,-1959.24842828,0.00016388,2]
[381425918,1756193439816,-2185.93832908,0.00016389,2]
[381425920,1756193439826,-2412.62822987,0.00016389,2]
[381425922,1756193439835,-2639.31813066,0.0001639,2]
[381425925,1756193439847,-1121387.37963416,0.000164,3]
[381425927,1756193439857,-151.0,0.000164,2]
[381425929,1756193439866,-12000.0,0.000164,2]
[381425931,1756193439876,-12000.0,0.000164,2]
[381425932,1756193439885,-160.976683,0.000164,2]
[381425934,1756193439895,-151.0,0.000164,2]
[381425936,1756193439905,-151.0,0.000164,2]
[381425938,1756193439915,-12000.0,0.000164,2]
[381425940,1756193439926,-160.976683,0.000164,2]
[381425942,1756193439935,-153.217048,0.000164,2]
[381425944,1756193439945,-12000.0,0.000164,2]
[381425946,1756193439954,-160.976683,0.000164,2]
[381425948,1756193439964,-151.0,0.000164,2]
[381425950,1756193439974,-11064.521473,0.000164,2]
[381425952,1756193439984,-151.0,0.000164,2]
[381425954,1756193439994,-641.458658,0.000164,2]
[381425956,1756193440004,-155.658208,0.000164,2]
[381425958,1756193440014,-190.145255,0.000164,2]
[381425960,1756193440024,-641.458658,0.000164,2]
[381425962,1756193440034,-160.976683,0.000164,2]
[381425964,1756193440043,-612.369938,0.000164,2]
[381425966,1756193440053,-155.658208,0.000164,2]
[381425968,1756193440063,-641.458658,0.000164,2]
[381425970,1756193440072,-612.369938,0.000164,2]
[381425972,1756193440085,-151.0,0.000164,2]
[381425974,1756193440095,-155.658208,0.000164,2]
[381425976,1756193440105,-641.458658,0.000164,2]
[381425978,1756193440115,-612.369938,0.000164,2]
[381425980,1756193440125,-151.0,0.000164,2]
[381425982,1756193440135,-155.658208,0.000164,2]
[381425984,1756193440144,-612.369938,0.000164,2]
[381425986,1756193440154,-151.0,0.000164,2]
[381425988,1756193440163,-151.0,0.000164,2]
[381425991,1756193440172,-151.0,0.000164,2]
[381425994,1756193440182,-151.0,0.000164,2]
[381425996,1756193440191,-151.0,0.000164,2]
[381425998,1756193440201,-151.0,0.000164,2]
[381426000,1756193440211,-151.0,0.000164,2]
[381426002,1756193440220,-151.0,0.000164,2]
[381426005,1756193440230,-151.0,0.000164,2]
[381426008,1756193440239,-151.0,0.000164,2]
[381426011,1756193440250,-151.0,0.000164,2]
[381426013,1756193440260,-151.0,0.000164,2]
[381426015,1756193440269,-151.0,0.000164,2]
[381426018,1756193440280,-458.7662338,0.000164,3]
[381426020,1756193440290,-209.479942,0.000164,2]
[381426022,1756193440299,-209.479942,0.000164,2]
[381426024,1756193440309,-151.0,0.000164,2]
[381426026,1756193440318,-179.573856,0.000164,2]
[381426028,1756193440328,-151.0,0.000164,2]
[381426030,1756193440337,-179.573856,0.000164,2]
[381426032,1756193440347,-151.0,0.000164,2]
[381426034,1756193440356,-209.479942,0.000164,2]
[381426035,1756193440365,-151.0,0.000164,2]
[381426037,1756193440375,-151.0,0.000164,2]
[381426040,1756193440385,-151.0,0.000164,2]
[381426042,1756193440395,-471.207843,0.000164,2]
[381426043,1756193440405,-179.573856,0.000164,2]
[381426046,1756193440415,-209.479942,0.000164,2]
[381426048,1756193440425,-151.0,0.000164,2]
[381426050,1756193440434,-151.0,0.000164,2]
[381426052,1756193440443,-471.207843,0.000164,2]
[381426054,1756193440453,-151.0,0.000164,2]
[381426056,1756193440464,-151.0,0.000164,2]
[381426058,1756193440473,-151.0,0.000164,2]
[381426060,1756193440482,-151.0,0.000164,2]
[381426062,1756193440492,-471.207843,0.000164,2]
[381426064,1756193440502,-179.573856,0.000164,2]
[381426066,1756193440511,-151.0,0.000164,2]
[381426068,1756193440520,-158.125596,0.000164,2]
[381426070,1756193440530,-151.0,0.000164,2]
[381426073,1756193440550,-151.949429,0.000164,2]
[381426075,1756193440561,-151.0,0.000164,2]
[381426077,1756193440571,-471.207843,0.000164,2]
[381426079,1756193440581,-177.928757,0.000164,2]
[381426081,1756193440591,-151.0,0.000164,2]
[381426083,1756193440600,-151.0,0.000164,2]
[381426085,1756193440611,-151.0,0.000164,2]
[381426087,1756193440620,-151.0,0.000164,2]
[381426089,1756193440630,-151.0,0.000164,2]
[381426091,1756193440640,-304.14737,0.000164,2]
[381426093,1756193440649,-344.038603,0.000164,2]
[381426095,1756193440659,-151.0,0.000164,2]
[381426097,1756193440670,-304.14737,0.000164,2]
[381426099,1756193440680,-344.038603,0.000164,2]
[381426101,1756193440690,-304.14737,0.000164,2]
[381426103,1756193440699,-151.0,0.000164,2]
[381426105,1756193440709,-344.038603,0.000164,2]
[381426107,1756193440718,-304.14737,0.000164,2]
[381426109,1756193440727,-151.0,0.000164,2]
[381426111,1756193440737,-344.038603,0.000164,2]
[381426113,1756193440747,-187.5147,0.000164,2]
[381426115,1756193440758,-293.876933,0.000164,2]
[381426117,1756193440768,-187.5147,0.000164,2]
[381426119,1756193440777,-293.876933,0.000164,2]
[381426121,1756193440786,-187.5147,0.000164,2]
[381426123,1756193440796,-293.876933,0.000164,2]
[381426125,1756193440805,-187.5147,0.000164,2]
[381426127,1756193440815,-293.876933,0.000164,2]
[381426129,1756193440824,-1774.242245,0.000164,2]
[381426131,1756193440835,-1774.242245,0.000164,2]
[381426133,1756193440845,-1774.242245,0.000164,2]
[381426135,1756193440855,-1774.242245,0.000164,2]
[381426137,1756193440865,-151.0,0.000164,2]
[381426139,1756193440876,-151.0,0.000164,2]
[381426141,1756193440885,-295.395436,0.000164,2]
[381426143,1756193440895,-205.44637,0.000164,2]
[381426145,1756193440905,-151.0,0.000164,2]
[381426147,1756193440915,-151.0,0.000164,2]
[381426149,1756193440924,-205.44637,0.000164,2]
[381426151,1756193440934,-151.0,0.000164,2]
[381426153,1756193440943,-151.0,0.000164,2]
[381426155,1756193440953,-151.0,0.000164,2]
[381426157,1756193440963,-205.44637,0.000164,2]
[381426159,1756193440972,-151.0,0.000164,2]
[381426161,1756193440982,-151.0,0.000164,2]
[381426163,1756193440992,-205.44637,0.000164,2]
[381426165,1756193441002,-151.0,0.000164,2]
[381426168,1756193441012,-151.0,0.000164,2]
[381426170,1756193441023,-151.0,0.000164,2]
[381426172,1756193441032,-151.0,0.000164,2]
[381426174,1756193441041,-151.0,0.000164,2]
[381426176,1756193441051,-337.089608,0.000164,2]
[381426178,1756193441062,-151.0,0.000164,2]
[381426180,1756193441072,-151.0,0.000164,2]
[381426182,1756193441082,-337.089608,0.000164,2]
[381426184,1756193441091,-151.0,0.000164,2]
[381426186,1756193441100,-151.0,0.000164,2]
[381426188,1756193441110,-228.894384,0.000164,2]
[381426190,1756193441119,-337.089608,0.000164,2]
[381426192,1756193441129,-228.894384,0.000164,2]
[381426193,1756193441138,-151.0,0.000164,2]
[381426195,1756193441148,-228.170272,0.000164,2]
[381426197,1756193441158,-337.089608,0.000164,2]
[381426199,1756193441167,-228.170272,0.000164,2]
[381426201,1756193441177,-228.854135,0.000164,2]
[381426204,1756193441188,-500.0,0.00016438,2]
[381426206,1756193441198,-352.0,0.0001645,2]
[381426208,1756193441207,-1000.0,0.00016453,2]
[381426210,1756193441217,-1000.0,0.0001647,2]
[381426212,1756193441226,-500.0,0.00016476,2]
[381426214,1756193441236,-500.0,0.00016514,2]
[381426216,1756193441246,-500.0,0.00016553,2]
[381426218,1756193441256,-500.0,0.00016591,2]
[381426220,1756193441265,-352.96575861,0.000166,2]
[381426222,1756193441277,-500.0,0.00016629,2]
[381426224,1756193441286,-500.0,0.00016667,2]
[381426226,1756193441296,-1000.0,0.0001667,2]
[381426228,1756193441307,-500.0,0.00016705,2]
[381426230,1756193441316,-500.0,0.00016743,2]
[381426232,1756193441326,-151.0,0.00016767,2]
[381426234,1756193441335,-500.0,0.00016781,2]
[381426236,1756193441344,-151.0,0.00016787,2]
[381426238,1756193441355,-500.0,0.00016819,2]
[381426240,1756193441365,-151.0,0.00016843,2]
[381426242,1756193441376,-500.0,0.00016857,2]
[381426244,1756193441386,-500.0,0.00016895,2]
[381426246,1756193441396,-151.0,0.00016908,2]
[381426248,1756193441406,-1000.0,0.00016921,2]
[381426250,1756193441416,-151.0,0.00016931,2]
[381426252,1756193441425,-500.0,0.00016933,2]
[381426254,1756193441435,-1252.0,0.00016943,2]
[381426256,1756193441444,-500.0,0.00016971,2]
[381426258,1756193441454,-151.0,0.00016995,2]
[381426260,1756193441463,-131555.54166091,0.00017,2]
[381426262,1756193441473,-500.0,0.00017009,2]
[381426264,1756193441482,-168.0,0.00017009,2]
[381426266,1756193441492,-151.0,0.00017032,2]
[381426268,1756193441502,-500.0,0.00017047,2]
[381426270,1756193441512,-168.0,0.00017048,2]
[381426272,1756193441521,-599.0,0.00017067,2]
[381426274,1756193441531,-1658.0,0.00017067,2]
[381426276,1756193441540,-566.0,0.00017067,2]
[381426278,1756193441552,-1298.0,0.00017067,2]
[381426280,1756193441564,-1173.0,0.00017067,2]
[381426282,1756193441574,-895.0,0.00017067,2]
[381426284,1756193441584,-2031.0,0.00017067,2]
[381426286,1756193441595,-3374.0,0.00017067,2]
[381426288,1756193441604,-6146.0,0.00017067,2]
[381426290,1756193441614,-1256.0,0.00017067,2]
[381426292,1756193441625,-926.0,0.00017067,2]
[381426294,1756193441635,-168.0,0.00017081,2]
[381426296,1756193441644,-500.0,0.00017085,2]
[381426298,1756193441654,-449.97291998,0.00017091,2]
[381426300,1756193441664,-600.0,0.00017113,2]
[381426302,1756193441674,-600.0,0.00017113,2]
[381426304,1756193441684,-600.0,0.00017113,2]
[381426306,1756193441693,-600.0,0.00017113,2]
[381426308,1756193441702,-600.0,0.00017113,2]
[381426310,1756193441712,-200.0,0.00017113,2]
[381426312,1756193441722,-600.0,0.00017113,2]
[381426314,1756193441732,-600.0,0.00017113,2]
[381426316,1756193441741,-600.0,0.00017113,2]
[381426318,1756193441751,-600.0,0.00017113,2]
[381426320,1756193441762,-600.0,0.00017113,2]
[381426322,1756193441772,-500.0,0.00017113,2]
[381426324,1756193441781,-600.0,0.00017113,2]
[381426326,1756193441792,-600.0,0.00017113,2]
[381426328,1756193441802,-192.6,0.00017113,2]
[381426330,1756193441812,-151.0,0.00017113,2]
[381426332,1756193441822,-500.0,0.00017123,2]
[381426334,1756193441832,-500.0,0.00017161,2]
[381426336,1756193441842,-500.0,0.00017168,2]
[381426338,1756193441853,-500.0,0.00017199,2]
[381426340,1756193441863,-500.0,0.000172,2]
[381426342,1756193441874,-500.0,0.00017223,2]
[381426345,1756193441885,-500.0,0.00017237,2]
[381426347,1756193441894,-500.0,0.00017275,2]
[381426349,1756193441904,-500.0,0.00017278,2]
[381426351,1756193441914,-500.0,0.00017314,2]
[381426353,1756193441924,-168.0,0.0001733,2]
[381426355,1756193441933,-500.0,0.00017333,2]